[Event "Titled Tuesday Blitz February 28 Late 2023"]
[White "Wieczorek, Oskar"]
[Black "WindWhistler11"]
[WhiteFideId "1133950"]
[WhiteElo "2418"]
[BlackElo "2536"]
[Result "1-0"]
[Round "06"]
[TimeControl "180+2"]
[Date "2023.02.28"]
[WhiteClock "0:00:14"]
[BlackClock "0:00:02"]

1. e4 {[%clk 0:03:00]}  e6 {[%clk 0:02:56]} 2. d4 {[%clk 0:02:59]}  d5 {[%clk 0:02:57]} 3. Nd2 {[%clk 0:02:59]}  Nf6 {[%clk 0:02:52]} 4. e5 {[%clk 0:02:59]}  Nfd7 {[%clk 0:02:52]} 5. f4 {[%clk 0:03:00]}  c5 {[%clk 0:02:51]} 6. c3 {[%clk 0:03:01]}  Nc6 {[%clk 0:02:51]} 7. Ndf3 {[%clk 0:03:00]}  Rb8 {[%clk 0:02:39]} 8. Bd3 {[%clk 0:02:58]}  b5 {[%clk 0:02:38]} 9. a3 {[%clk 0:02:59]}  Be7 {[%clk 0:02:29]} 10. Ne2 {[%clk 0:02:59]}  g6 {[%clk 0:02:28]} 11. O-O {[%clk 0:02:48]}  a5 {[%clk 0:02:27]} 12. Kh1 {[%clk 0:02:48]}  c4 {[%clk 0:02:15]} 13. Bc2 {[%clk 0:02:46]}  b4 {[%clk 0:02:07]} 14. axb4 {[%clk 0:02:47]}  axb4 {[%clk 0:02:07]} 15. g4 {[%clk 0:02:48]}  b3 {[%clk 0:02:06]} 16. Bb1 {[%clk 0:02:47]}  h5 {[%clk 0:02:05]} 17. gxh5 {[%clk 0:02:25]}  Rxh5 {[%clk 0:02:06]} 18. Ng3 {[%clk 0:02:13]}  Rh8 {[%clk 0:02:05]} 19. Ng5 {[%clk 0:02:11]}  Nf8 {[%clk 0:02:01]} 20. Qg4 {[%clk 0:02:11]}  Bd7 {[%clk 0:01:52]} 21. Kg2 {[%clk 0:02:09]}  Ra8 {[%clk 0:01:41]} 22. Rxa8 {[%clk 0:02:09]}  Qxa8 {[%clk 0:01:42]} 23. Qe2 {[%clk 0:02:09]}  Bd8 {[%clk 0:01:28]} 24. Be3 {[%clk 0:02:01]}  Ne7 {[%clk 0:01:28]} 25. Qf3 {[%clk 0:01:29]}  Nf5 {[%clk 0:01:18]} 26. Bxf5 {[%clk 0:01:27]}  gxf5 {[%clk 0:01:19]} 27. Nh5 {[%clk 0:01:24]}  Ng6 {[%clk 0:01:10]} 28. Kh1 {[%clk 0:01:25]}  Qa2 {[%clk 0:01:05]} 29. Qe2 {[%clk 0:01:19]}  Be7 {[%clk 0:00:48]} 30. Nf6+ {[%clk 0:01:18]}  Bxf6 {[%clk 0:00:46]} 31. exf6 {[%clk 0:01:18]}  Nf8 {[%clk 0:00:32]} 32. Qg2 {[%clk 0:01:14]}  Rh4 {[%clk 0:00:28]} 33. Nxf7 {[%clk 0:01:12]}  Rg4 {[%clk 0:00:24]} 34. Nd6+ {[%clk 0:01:00]}  Kd8 {[%clk 0:00:23]} 35. Qf2 {[%clk 0:00:51]}  Be8 {[%clk 0:00:16]} 36. Nb7+ {[%clk 0:00:37]}  Kc7 {[%clk 0:00:14]} 37. Nc5 {[%clk 0:00:38]}  Bf7 {[%clk 0:00:13]} 38. h3 {[%clk 0:00:35]}  Rg6 {[%clk 0:00:12]} 39. Kh2 {[%clk 0:00:34]}  Nd7 {[%clk 0:00:11]} 40. Nxd7 {[%clk 0:00:31]}  Kxd7 {[%clk 0:00:12]} 41. Rg1 {[%clk 0:00:30]}  Rxg1 {[%clk 0:00:12]} 42. Kxg1 {[%clk 0:00:31]}  Qb1+ {[%clk 0:00:12]} 43. Kh2 {[%clk 0:00:31]}  Ke8 {[%clk 0:00:10]} 44. Qh4 {[%clk 0:00:28]}  Qc2+ {[%clk 0:00:10]} 45. Kg3 {[%clk 0:00:27]}  Qd1 {[%clk 0:00:08]} 46. Qh8+ {[%clk 0:00:27]}  Kd7 {[%clk 0:00:09]} 47. Qf8 {[%clk 0:00:26]}  Bh5 {[%clk 0:00:05]} 48. Qe7+ {[%clk 0:00:25]}  Kc6 {[%clk 0:00:04]} 49. Qxe6+ {[%clk 0:00:25]}  Kc7 {[%clk 0:00:05]} 50. Qe7+ {[%clk 0:00:22]}  Kb6 {[%clk 0:00:03]} 51. Qc5+ {[%clk 0:00:23]}  Ka6 {[%clk 0:00:03]} 52. Qc6+ {[%clk 0:00:21]}  Ka7 {[%clk 0:00:03]} 53. Qd7+ {[%clk 0:00:16]}  Ka6 {[%clk 0:00:04]} 54. Qxf5 {[%clk 0:00:15]}  Qf3+ {[%clk 0:00:03]} 55. Kh4 {[%clk 0:00:15]}  Bf7 {[%clk 0:00:02]} 56. Qe5 {[%clk 0:00:14]}  Qxf4+ {[%clk 0:00:02]} 57. Bxf4 {[%clk 0:00:14]} 1-0


[Site "https://www.chess.com"]

[Event "Titled Tuesday Blitz February 28 Late 2023"]
[White "Taboas Rodriguez, Daniel"]
[Black "Jaracz, Pawel"]
[WhiteFideId "2208466"]
[BlackFideId "1102222"]
[WhiteElo "2365"]
[BlackElo "2438"]
[Result "0-1"]
[Round "06"]
[TimeControl "180+2"]
[Date "2023.02.28"]
[WhiteClock "0:01:21"]
[BlackClock "0:01:07"]

1. d4 {[%clk 0:03:00]}  Nf6 {[%clk 0:02:59]} 2. Nf3 {[%clk 0:02:58]}  c5 {[%clk 0:02:59]} 3. d5 {[%clk 0:02:58]}  d6 {[%clk 0:02:58]} 4. c4 {[%clk 0:02:59]}  Bg4 {[%clk 0:02:57]} 5. Qa4+ {[%clk 0:02:56]}  Nbd7 {[%clk 0:02:54]} 6. Nbd2 {[%clk 0:02:53]}  a6 {[%clk 0:02:52]} 7. e4 {[%clk 0:02:46]}  g6 {[%clk 0:02:46]} 8. Bd3 {[%clk 0:02:30]}  Bg7 {[%clk 0:02:45]} 9. h3 {[%clk 0:02:27]}  Bxf3 {[%clk 0:02:45]} 10. Nxf3 {[%clk 0:02:28]}  O-O {[%clk 0:02:45]} 11. O-O {[%clk 0:02:26]}  Ne8 {[%clk 0:02:41]} 12. Qc2 {[%clk 0:02:22]}  Nc7 {[%clk 0:02:39]} 13. a4 {[%clk 0:02:21]}  b5 {[%clk 0:02:39]} 14. axb5 {[%clk 0:02:20]}  axb5 {[%clk 0:02:39]} 15. Rxa8 {[%clk 0:02:21]}  Qxa8 {[%clk 0:02:39]} 16. b3 {[%clk 0:02:20]}  Na6 {[%clk 0:02:29]} 17. Bg5 {[%clk 0:02:18]}  Nb4 {[%clk 0:02:28]} 18. Qd2 {[%clk 0:02:11]}  bxc4 {[%clk 0:02:16]} 19. Bxc4 {[%clk 0:02:04]}  Bf6 {[%clk 0:02:10]} 20. Bxf6 {[%clk 0:01:57]}  exf6 {[%clk 0:02:07]} 21. Re1 {[%clk 0:01:55]}  Kg7 {[%clk 0:01:57]} 22. h4 {[%clk 0:01:53]}  h5 {[%clk 0:01:56]} 23. Nh2 {[%clk 0:01:40]}  Re8 {[%clk 0:01:48]} 24. g4 {[%clk 0:01:38]}  hxg4 {[%clk 0:01:43]} 25. Nxg4 {[%clk 0:01:39]}  Rh8 {[%clk 0:01:43]} 26. Qf4 {[%clk 0:01:31]}  Rxh4 {[%clk 0:01:39]} 27. Qg3 {[%clk 0:01:31]}  Qh8 {[%clk 0:01:35]} 28. Bf1 {[%clk 0:01:30]}  Ne5 {[%clk 0:01:25]} 29. Nxe5 {[%clk 0:01:29]}  fxe5 {[%clk 0:01:25]} 30. Bg2 {[%clk 0:01:29]}  Qh5 {[%clk 0:01:18]} 31. Ra1 {[%clk 0:01:26]}  Rg4 {[%clk 0:01:16]} 32. Qh2 {[%clk 0:01:22]}  Rh4 {[%clk 0:01:07]} 33. Qg3 {[%clk 0:01:21]}  Nc2 {[%clk 0:01:07]} 0-1


[Site "https://www.chess.com"]

[Event "Titled Tuesday Blitz February 28 Late 2023"]
[White "Koc, Przemyslaw"]
[Black "Adewumi, Tanitoluwa"]
[WhiteFideId "1109081"]
[BlackFideId "30966396"]
[WhiteElo "2161"]
[BlackElo "2675"]
[Result "1-0"]
[Round "06"]
[TimeControl "180+2"]
[Date "2023.02.28"]
[WhiteClock "0:00:39"]
[BlackClock "0:00:01"]

1. Nf3 {[%clk 0:03:00]}  d5 {[%clk 0:02:49]} 2. e3 {[%clk 0:03:00]}  Nf6 {[%clk 0:02:48]} 3. d4 {[%clk 0:02:59]}  Bf5 {[%clk 0:02:44]} 4. c4 {[%clk 0:02:58]}  e6 {[%clk 0:02:40]} 5. Qb3 {[%clk 0:02:58]}  b6 {[%clk 0:02:00]} 6. Nc3 {[%clk 0:02:55]}  c6 {[%clk 0:01:55]} 7. Nh4 {[%clk 0:02:53]}  Bg4 {[%clk 0:01:48]} 8. h3 {[%clk 0:02:51]}  Bh5 {[%clk 0:01:41]} 9. g4 {[%clk 0:02:51]}  Bg6 {[%clk 0:01:41]} 10. Nxg6 {[%clk 0:02:33]}  hxg6 {[%clk 0:01:38]} 11. Bg2 {[%clk 0:02:34]}  Nbd7 {[%clk 0:01:32]} 12. Bd2 {[%clk 0:02:24]}  Qc8 {[%clk 0:01:05]} 13. Rc1 {[%clk 0:02:18]}  Qa6 {[%clk 0:01:04]} 14. cxd5 {[%clk 0:02:13]}  exd5 {[%clk 0:00:46]} 15. e4 {[%clk 0:02:07]}  Be7 {[%clk 0:00:22]} 16. exd5 {[%clk 0:02:00]}  cxd5 {[%clk 0:00:20]} 17. Nxd5 {[%clk 0:01:48]}  Nxd5 {[%clk 0:00:16]} 18. Qxd5 {[%clk 0:01:49]}  Rd8 {[%clk 0:00:12]} 19. Bf1 {[%clk 0:01:37]}  b5 {[%clk 0:00:06]} 20. Bxb5 {[%clk 0:01:35]}  Qb6 {[%clk 0:00:05]} 21. Rc6 {[%clk 0:01:32]}  Qb8 {[%clk 0:00:03]} 22. Qe4 {[%clk 0:01:26]}  O-O {[%clk 0:00:02]} 23. O-O {[%clk 0:01:24]}  Nf6 {[%clk 0:00:03]} 24. Qxe7 {[%clk 0:01:21]}  Qxb5 {[%clk 0:00:03]} 25. Rxf6 {[%clk 0:01:17]}  gxf6 {[%clk 0:00:02]} 26. Qxf6 {[%clk 0:01:18]}  Qxb2 {[%clk 0:00:02]} 27. Be3 {[%clk 0:01:15]}  Rfe8 {[%clk 0:00:01]} 28. h4 {[%clk 0:01:12]}  Qb6 {[%clk 0:00:01]} 29. Qf4 {[%clk 0:01:08]}  Qe6 {[%clk 0:00:02]} 30. Rc1 {[%clk 0:01:03]}  Qe4 {[%clk 0:00:02]} 31. Qg3 {[%clk 0:00:57]}  Rd7 {[%clk 0:00:02]} 32. a4 {[%clk 0:00:51]}  Rde7 {[%clk 0:00:02]} 33. Rc5 {[%clk 0:00:48]}  Rd7 {[%clk 0:00:03]} 34. h5 {[%clk 0:00:46]}  gxh5 {[%clk 0:00:03]} 35. gxh5+ {[%clk 0:00:46]}  Kh7 {[%clk 0:00:03]} 36. Rg5 {[%clk 0:00:46]}  f6 {[%clk 0:00:03]} 37. Rg6 {[%clk 0:00:45]}  Qb1+ {[%clk 0:00:02]} 38. Kh2 {[%clk 0:00:44]}  Rxe3 {[%clk 0:00:01]} 39. Qxe3 {[%clk 0:00:41]}  Qb8+ {[%clk 0:00:01]} 40. Kh3 {[%clk 0:00:39]} 1-0


[Site "https://www.chess.com"]

[Event "Titled Tuesday Blitz February 28 Late 2023"]
[White "Fiorito, Francisco"]
[Black "Mendez Fortes, Eduardo Jesus"]
[WhiteFideId "180165"]
[BlackFideId "3502376"]
[WhiteElo "2341"]
[BlackElo "2307"]
[Result "1-0"]
[Round "06"]
[TimeControl "180+2"]
[Date "2023.02.28"]
[WhiteClock "0:01:11"]
[BlackClock "0:00:04"]

1. d4 {[%clk 0:03:00]}  Nf6 {[%clk 0:02:59]} 2. Nc3 {[%clk 0:03:00]}  d5 {[%clk 0:02:59]} 3. Bf4 {[%clk 0:03:00]}  a6 {[%clk 0:02:59]} 4. e3 {[%clk 0:03:00]}  e6 {[%clk 0:02:59]} 5. g4 {[%clk 0:03:01]}  b5 {[%clk 0:02:58]} 6. g5 {[%clk 0:03:00]}  Nfd7 {[%clk 0:02:59]} 7. Bg2 {[%clk 0:03:00]}  Bb7 {[%clk 0:02:58]} 8. Nge2 {[%clk 0:02:59]}  Bd6 {[%clk 0:02:53]} 9. h4 {[%clk 0:02:53]}  Bxf4 {[%clk 0:02:51]} 10. Nxf4 {[%clk 0:02:48]}  c5 {[%clk 0:02:44]} 11. Qg4 {[%clk 0:02:40]}  Qe7 {[%clk 0:02:33]} 12. O-O {[%clk 0:02:39]}  O-O {[%clk 0:02:14]} 13. h5 {[%clk 0:02:37]}  b4 {[%clk 0:02:11]} 14. Nce2 {[%clk 0:02:36]}  Qd6 {[%clk 0:01:56]} 15. g6 {[%clk 0:02:33]}  Nf6 {[%clk 0:01:41]} 16. gxf7+ {[%clk 0:02:30]}  Kxf7 {[%clk 0:01:42]} 17. Qg5 {[%clk 0:02:27]}  Nbd7 {[%clk 0:01:28]} 18. Bh3 {[%clk 0:02:25]}  Rae8 {[%clk 0:01:25]} 19. Kh1 {[%clk 0:02:23]}  Ne4 {[%clk 0:01:17]} 20. Qg2 {[%clk 0:02:16]}  e5 {[%clk 0:01:14]} 21. Nd3 {[%clk 0:02:06]}  exd4 {[%clk 0:01:04]} 22. Rg1 {[%clk 0:02:03]}  Re7 {[%clk 0:00:36]} 23. exd4 {[%clk 0:02:02]}  Kg8 {[%clk 0:00:23]} 24. f4 {[%clk 0:01:51]}  c4 {[%clk 0:00:17]} 25. Ne5 {[%clk 0:01:51]}  Nxe5 {[%clk 0:00:17]} 26. fxe5 {[%clk 0:01:49]}  Qh6 {[%clk 0:00:17]} 27. Raf1 {[%clk 0:01:46]}  Ref7 {[%clk 0:00:16]} 28. Rxf7 {[%clk 0:01:43]}  Rxf7 {[%clk 0:00:15]} 29. Bg4 {[%clk 0:01:33]}  Rf2 {[%clk 0:00:12]} 30. Qh3 {[%clk 0:01:25]}  Rxe2 {[%clk 0:00:10]} 31. Be6+ {[%clk 0:01:21]}  Kh8 {[%clk 0:00:09]} 32. Qh4 {[%clk 0:01:19]}  Nf2+ {[%clk 0:00:08]} 33. Kg2 {[%clk 0:01:20]}  Ne4+ {[%clk 0:00:07]} 34. Kh1 {[%clk 0:01:17]}  Qxe6 {[%clk 0:00:07]} 35. Rf1 {[%clk 0:01:17]}  h6 {[%clk 0:00:04]} 36. Kg1 {[%clk 0:01:11]} 1-0


[Site "https://www.chess.com"]

[Event "Titled Tuesday Blitz February 28 Late 2023"]
[White "Alikhanov, Felix"]
[Black "Sadovsky, Artem"]
[WhiteFideId "4157427"]
[BlackFideId "4155840"]
[WhiteElo "2425"]
[BlackElo "2314"]
[Result "1-0"]
[Round "06"]
[TimeControl "180+2"]
[Date "2023.02.28"]
[WhiteClock "0:00:16"]
[BlackClock "0:00:26"]

1. e4 {[%clk 0:02:59]}  g6 {[%clk 0:02:46]} 2. d4 {[%clk 0:02:59]}  Bg7 {[%clk 0:02:47]} 3. Nc3 {[%clk 0:03:00]}  c6 {[%clk 0:02:42]} 4. f4 {[%clk 0:02:59]}  d5 {[%clk 0:02:43]} 5. e5 {[%clk 0:03:00]}  h5 {[%clk 0:02:43]} 6. Nf3 {[%clk 0:03:00]}  Nh6 {[%clk 0:02:43]} 7. Be3 {[%clk 0:03:00]}  Bg4 {[%clk 0:02:43]} 8. Be2 {[%clk 0:03:01]}  Nf5 {[%clk 0:02:44]} 9. Bf2 {[%clk 0:03:01]}  e6 {[%clk 0:02:44]} 10. O-O {[%clk 0:02:59]}  Bf8 {[%clk 0:02:43]} 11. h3 {[%clk 0:02:59]}  Bxf3 {[%clk 0:02:42]} 12. Bxf3 {[%clk 0:03:00]}  h4 {[%clk 0:02:43]} 13. Qd2 {[%clk 0:03:00]}  Be7 {[%clk 0:02:43]} 14. Ne2 {[%clk 0:03:00]}  Nd7 {[%clk 0:02:42]} 15. b3 {[%clk 0:03:00]}  a5 {[%clk 0:02:42]} 16. c4 {[%clk 0:02:59]}  Kf8 {[%clk 0:02:25]} 17. Rfc1 {[%clk 0:02:54]}  Kg7 {[%clk 0:02:24]} 18. Rc2 {[%clk 0:02:42]}  a4 {[%clk 0:02:10]} 19. Rb1 {[%clk 0:02:25]}  axb3 {[%clk 0:02:01]} 20. Rxb3 {[%clk 0:02:24]}  Ra7 {[%clk 0:01:57]} 21. c5 {[%clk 0:02:15]}  Qc7 {[%clk 0:01:51]} 22. Rcb2 {[%clk 0:02:15]}  Rha8 {[%clk 0:01:50]} 23. Bg4 {[%clk 0:02:10]}  Nf8 {[%clk 0:01:46]} 24. Bxf5 {[%clk 0:02:07]}  gxf5 {[%clk 0:01:44]} 25. Kh2 {[%clk 0:02:07]}  Ng6 {[%clk 0:01:44]} 26. Ng1 {[%clk 0:02:06]}  Qa5 {[%clk 0:01:39]} 27. Qc1 {[%clk 0:01:51]}  Qa6 {[%clk 0:01:24]} 28. Nf3 {[%clk 0:01:29]}  Qc4 {[%clk 0:01:24]} 29. Rc2 {[%clk 0:01:26]}  Qa4 {[%clk 0:01:03]} 30. Qe1 {[%clk 0:01:21]}  Qa5 {[%clk 0:01:02]} 31. Qb1 {[%clk 0:00:55]}  Nxf4 {[%clk 0:00:48]} 32. Bxh4 {[%clk 0:00:47]}  Bxh4 {[%clk 0:00:45]} 33. Nxh4 {[%clk 0:00:47]}  Qd8 {[%clk 0:00:45]} 34. Qe1 {[%clk 0:00:35]}  Rxa2 {[%clk 0:00:33]} 35. Rxa2 {[%clk 0:00:33]}  Rxa2 {[%clk 0:00:34]} 36. Qg3+ {[%clk 0:00:29]}  Ng6 {[%clk 0:00:34]} 37. Nxg6 {[%clk 0:00:24]}  fxg6 {[%clk 0:00:35]} 38. Rxb7+ {[%clk 0:00:24]}  Kh6 {[%clk 0:00:36]} 39. h4 {[%clk 0:00:16]}  Kh5 {[%clk 0:00:26]} 40. Rh7# {[%clk 0:00:16]} 1-0


[Site "https://www.chess.com"]

[Event "Titled Tuesday Blitz February 28 Late 2023"]
[White "Petrovic, Aleksa"]
[Black "Yang, Qindong"]
[WhiteFideId "967629"]
[BlackFideId "8603758"]
[WhiteElo "2304"]
[BlackElo "2090"]
[Result "1-0"]
[Round "06"]
[TimeControl "180+2"]
[Date "2023.02.28"]
[WhiteClock "0:00:49"]
[BlackClock "0:00:01"]

1. d4 {[%clk 0:02:57]}  Nf6 {[%clk 0:02:59]} 2. c4 {[%clk 0:02:57]}  e6 {[%clk 0:02:59]} 3. Nf3 {[%clk 0:02:57]}  Bb4+ {[%clk 0:02:59]} 4. Bd2 {[%clk 0:02:57]}  a5 {[%clk 0:02:58]} 5. g3 {[%clk 0:02:56]}  d6 {[%clk 0:02:58]} 6. Bg2 {[%clk 0:02:56]}  Nbd7 {[%clk 0:02:58]} 7. O-O {[%clk 0:02:57]}  e5 {[%clk 0:02:59]} 8. e3 {[%clk 0:02:57]}  O-O {[%clk 0:02:34]} 9. Bc1 {[%clk 0:02:56]}  a4 {[%clk 0:02:32]} 10. a3 {[%clk 0:02:55]}  Ba5 {[%clk 0:02:33]} 11. Qxa4 {[%clk 0:02:54]}  e4 {[%clk 0:02:33]} 12. Nfd2 {[%clk 0:02:38]}  Bxd2 {[%clk 0:00:54]} 13. Qxa8 {[%clk 0:02:37]}  Nb6 {[%clk 0:00:46]} 14. Qa7 {[%clk 0:02:33]}  Bxc1 {[%clk 0:00:35]} 15. Rxc1 {[%clk 0:02:34]}  Ng4 {[%clk 0:00:32]} 16. Nd2 {[%clk 0:02:28]}  f5 {[%clk 0:00:26]} 17. c5 {[%clk 0:02:14]}  dxc5 {[%clk 0:00:21]} 18. Rxc5 {[%clk 0:02:12]}  c6 {[%clk 0:00:16]} 19. Qa5 {[%clk 0:02:05]}  Be6 {[%clk 0:00:09]} 20. Bh3 {[%clk 0:01:21]}  h5 {[%clk 0:00:06]} 21. Bxg4 {[%clk 0:01:15]}  hxg4 {[%clk 0:00:06]} 22. Rac1 {[%clk 0:01:08]}  Rf6 {[%clk 0:00:05]} 23. Re5 {[%clk 0:01:05]}  Bd5 {[%clk 0:00:04]} 24. Nc4 {[%clk 0:00:53]}  Bxc4 {[%clk 0:00:02]} 25. Rxc4 {[%clk 0:00:53]}  Rf8 {[%clk 0:00:02]} 26. Rb4 {[%clk 0:00:51]}  Nd5 {[%clk 0:00:01]} 27. Qxd8 {[%clk 0:00:49]} 1-0


[Site "https://www.chess.com"]

[Event "Titled Tuesday Blitz February 28 Late 2023"]
[White "Mujumdar, Sameer"]
[Black "Gunduz, Umut Erdem"]
[WhiteFideId "2029707"]
[BlackFideId "6381383"]
[WhiteElo "2104"]
[BlackElo "2182"]
[Result "0-1"]
[Round "06"]
[TimeControl "180+2"]
[Date "2023.02.28"]
[WhiteClock "0:00:45"]
[BlackClock "0:01:59"]

1. Nf3 {[%clk 0:03:00]}  Nf6 {[%clk 0:02:56]} 2. c4 {[%clk 0:03:00]}  c5 {[%clk 0:02:57]} 3. Nc3 {[%clk 0:03:00]}  Nc6 {[%clk 0:02:57]} 4. e3 {[%clk 0:02:58]}  e6 {[%clk 0:02:57]} 5. d4 {[%clk 0:02:58]}  d5 {[%clk 0:02:57]} 6. Bd3 {[%clk 0:02:57]}  dxc4 {[%clk 0:02:56]} 7. Bxc4 {[%clk 0:02:57]}  cxd4 {[%clk 0:02:57]} 8. exd4 {[%clk 0:02:57]}  Be7 {[%clk 0:02:53]} 9. O-O {[%clk 0:02:57]}  O-O {[%clk 0:02:54]} 10. Re1 {[%clk 0:02:57]}  a6 {[%clk 0:02:54]} 11. Bg5 {[%clk 0:02:46]}  b5 {[%clk 0:02:52]} 12. Bb3 {[%clk 0:02:45]}  Na5 {[%clk 0:02:49]} 13. Bc2 {[%clk 0:02:40]}  Bb7 {[%clk 0:02:47]} 14. Qd3 {[%clk 0:02:32]}  g6 {[%clk 0:02:42]} 15. Rad1 {[%clk 0:02:31]}  Nc4 {[%clk 0:02:41]} 16. Rb1 {[%clk 0:02:21]}  Rc8 {[%clk 0:02:39]} 17. Ne5 {[%clk 0:02:05]}  Nd5 {[%clk 0:02:23]} 18. Bxe7 {[%clk 0:02:03]}  Qxe7 {[%clk 0:02:23]} 19. Nxc4 {[%clk 0:01:56]}  Nb4 {[%clk 0:02:16]} 20. Qd2 {[%clk 0:01:47]}  Nxc2 {[%clk 0:02:15]} 21. Qxc2 {[%clk 0:01:25]}  Rxc4 {[%clk 0:02:14]} 22. Rbd1 {[%clk 0:01:23]}  Rd8 {[%clk 0:02:12]} 23. Qd2 {[%clk 0:01:15]}  Qh4 {[%clk 0:02:06]} 24. Ne2 {[%clk 0:01:08]}  Qg4 {[%clk 0:02:01]} 25. Ng3 {[%clk 0:00:45]}  Rcxd4 {[%clk 0:01:59]} 0-1


[Site "https://www.chess.com"]

[Event "Titled Tuesday Blitz February 28 Late 2023"]
[White "Jovic, Stanoje"]
[Black "Risteski, Emil"]
[WhiteFideId "905020"]
[BlackFideId "15005267"]
[WhiteElo "2236"]
[BlackElo "2251"]
[Result "1-0"]
[Round "06"]
[TimeControl "180+2"]
[Date "2023.02.28"]
[WhiteClock "0:00:34"]
[BlackClock "0:00:18"]

1. c4 {[%clk 0:03:00]}  Nc6 {[%clk 0:03:00]} 2. g3 {[%clk 0:03:00]}  e5 {[%clk 0:02:59]} 3. Bg2 {[%clk 0:03:00]}  h5 {[%clk 0:03:00]} 4. h3 {[%clk 0:02:55]}  Bc5 {[%clk 0:02:58]} 5. Nc3 {[%clk 0:02:53]}  a6 {[%clk 0:02:58]} 6. Nf3 {[%clk 0:02:51]}  Ba7 {[%clk 0:02:54]} 7. e3 {[%clk 0:02:49]}  d6 {[%clk 0:02:50]} 8. d4 {[%clk 0:02:48]}  h4 {[%clk 0:02:46]} 9. g4 {[%clk 0:02:45]}  Nge7 {[%clk 0:02:40]} 10. b4 {[%clk 0:02:32]}  exd4 {[%clk 0:02:38]} 11. exd4 {[%clk 0:02:32]}  Nxb4 {[%clk 0:02:38]} 12. Qa4+ {[%clk 0:02:29]}  Nbc6 {[%clk 0:02:36]} 13. d5 {[%clk 0:02:29]}  b5 {[%clk 0:02:32]} 14. cxb5 {[%clk 0:02:25]}  Ne5 {[%clk 0:02:18]} 15. Nxe5 {[%clk 0:02:20]}  dxe5 {[%clk 0:02:18]} 16. d6 {[%clk 0:02:14]}  cxd6 {[%clk 0:02:17]} 17. Bxa8 {[%clk 0:02:11]}  O-O {[%clk 0:02:16]} 18. Bg5 {[%clk 0:01:58]}  f6 {[%clk 0:02:11]} 19. Qb3+ {[%clk 0:01:46]}  Kh8 {[%clk 0:02:01]} 20. Bxh4 {[%clk 0:01:46]}  Bd4 {[%clk 0:02:01]} 21. Rd1 {[%clk 0:01:40]}  Qa5 {[%clk 0:01:58]} 22. Rd3 {[%clk 0:01:30]}  axb5 {[%clk 0:01:55]} 23. Bg2 {[%clk 0:01:21]}  b4 {[%clk 0:01:09]} 24. Ne2 {[%clk 0:01:18]}  Bc5 {[%clk 0:01:03]} 25. O-O {[%clk 0:01:14]}  Ba6 {[%clk 0:01:02]} 26. Rd2 {[%clk 0:01:13]}  d5 {[%clk 0:00:56]} 27. Ng3 {[%clk 0:01:03]}  Bc4 {[%clk 0:00:32]} 28. Qc2 {[%clk 0:01:00]}  Rc8 {[%clk 0:00:30]} 29. Nf5 {[%clk 0:00:58]}  Bxf1 {[%clk 0:00:26]} 30. Kxf1 {[%clk 0:00:46]}  Nxf5 {[%clk 0:00:20]} 31. Qxf5 {[%clk 0:00:45]}  Rd8 {[%clk 0:00:20]} 32. Qh5+ {[%clk 0:00:42]}  Kg8 {[%clk 0:00:20]} 33. Bxd5+ {[%clk 0:00:42]}  Rxd5 {[%clk 0:00:19]} 34. Rxd5 {[%clk 0:00:42]}  Bf8 {[%clk 0:00:18]} 35. Rxa5 {[%clk 0:00:34]} 1-0


[Site "https://www.chess.com"]

[Event "Titled Tuesday Blitz February 28 Late 2023"]
[White "Gadimbayli, Abdulla"]
[Black "Ansh M Shah"]
[WhiteFideId "13404938"]
[BlackFideId "25033379"]
[WhiteElo "2390"]
[BlackElo "2084"]
[Result "1-0"]
[Round "06"]
[TimeControl "180+2"]
[Date "2023.02.28"]
[WhiteClock "0:00:49"]
[BlackClock "0:00:15"]

1. Nf3 {[%clk 0:02:33]}  Nf6 {[%clk 0:02:59]} 2. g3 {[%clk 0:02:34]}  g6 {[%clk 0:02:59]} 3. Bg2 {[%clk 0:02:35]}  Bg7 {[%clk 0:02:59]} 4. O-O {[%clk 0:02:36]}  O-O {[%clk 0:02:59]} 5. d4 {[%clk 0:02:36]}  d5 {[%clk 0:02:59]} 6. c4 {[%clk 0:02:37]}  c6 {[%clk 0:02:59]} 7. Nc3 {[%clk 0:02:37]}  dxc4 {[%clk 0:02:59]} 8. Ne5 {[%clk 0:02:37]}  Be6 {[%clk 0:02:57]} 9. e4 {[%clk 0:02:35]}  Nbd7 {[%clk 0:02:54]} 10. f4 {[%clk 0:02:25]}  Nxe5 {[%clk 0:01:54]} 11. fxe5 {[%clk 0:02:26]}  Nd7 {[%clk 0:01:52]} 12. Qe2 {[%clk 0:02:23]}  h5 {[%clk 0:01:48]} 13. Bg5 {[%clk 0:02:16]}  c5 {[%clk 0:01:45]} 14. d5 {[%clk 0:02:17]}  Bg4 {[%clk 0:01:45]} 15. Qxc4 {[%clk 0:02:12]}  Nxe5 {[%clk 0:01:45]} 16. Qxc5 {[%clk 0:02:12]}  Rc8 {[%clk 0:01:42]} 17. Qxe7 {[%clk 0:02:01]}  Qb6+ {[%clk 0:01:37]} 18. Kh1 {[%clk 0:02:01]}  Qxb2 {[%clk 0:01:34]} 19. Na4 {[%clk 0:01:41]}  Qd4 {[%clk 0:01:26]} 20. Qa3 {[%clk 0:01:37]}  Rc4 {[%clk 0:00:46]} 21. Nb2 {[%clk 0:01:32]}  Rc3 {[%clk 0:00:38]} 22. Qa4 {[%clk 0:01:21]}  Nc4 {[%clk 0:00:16]} 23. Nxc4 {[%clk 0:01:03]}  Rxc4 {[%clk 0:00:17]} 24. Qb3 {[%clk 0:00:59]}  Rc3 {[%clk 0:00:15]} 25. Qxb7 {[%clk 0:00:57]}  Rc2 {[%clk 0:00:15]} 26. d6 {[%clk 0:00:50]}  Rxg2 {[%clk 0:00:15]} 27. Kxg2 {[%clk 0:00:50]}  Qxe4+ {[%clk 0:00:15]} 28. Qxe4 {[%clk 0:00:49]} 1-0


[Site "https://www.chess.com"]